bitfinex-derivatives/quotes_SOLF0:USTF0_20250211
["timestamp","ask_amount","ask_price","bid_price","bid_amount"]
[1739303945065,0.03768296,195.81,195.78,0.03654964]
[1739303945268,0.03768296,195.81,195.78,9.05390431]
[1739303945663,0.03768296,195.81,195.8,9.01735467]
[1739303946870,0.03768296,195.81,195.8,14.12485467]
[1739303947067,0.03768296,195.81,195.8,5.1075]
[1739303947876,0.03768296,195.81,195.78,9.05390431]
[1739303949573,0.03768296,195.81,195.78,0.03654964]
[1739303949776,0.03768296,195.81,195.79,5.1075]
[1739303949976,0.03768296,195.81,195.78,0.03654964]
[1739303950574,0.03768296,195.81,195.8,5.1075]
[1739303952280,8.296e-05,195.81,195.8,5.1075]
[1739303953677,14.08714722,195.81,195.68,14.08706426]
[1739303953881,14.08706426,195.78,195.65,14.08706426]
[1739303954379,14.08706426,195.78,195.72,5.1095]
[1739303954582,14.08706426,195.81,195.68,14.08706426]
[1739303955081,0.03837032,195.76,195.73,0.03769225]
[1739303957679,14.08706426,195.75,195.66,5.1111]
[1739303957878,14.08706426,195.72,195.62,14.08706426]
[1739303958080,14.08706426,195.72,195.61,10.15370365]
[1739303958581,14.08706426,195.72,195.65,5.1113]
[1739303958782,14.08706426,195.72,195.61,10.15370365]
[1739303958975,0.03389708,195.7,195.67,0.03568475]
[1739303959685,0.03389708,195.7,195.67,5.14628475]
[1739303959882,0.03389708,195.7,195.67,0.03568475]
[1739303960686,5.14409708,195.7,195.67,0.03568475]
[1739303961585,5.1104,195.69,195.67,0.03568475]
[1739303961886,0.03389708,195.7,195.67,0.03568475]
[1739303963088,14.08706426,195.68,195.67,0.03568475]
[1739303963386,0.03389708,195.7,195.67,0.03568475]
[1739303963893,5.1106,195.69,195.67,0.03568475]
[1739303964679,5.1106,195.69,195.64,5.1116]
[1739303964680,1.5591,195.69,195.59,14.08706426]
[1739303965783,0.0350747,195.66,195.65,5.1112]
[1739303967187,0.0350747,195.66,195.64,5.1116]
[1739303967386,0.0350747,195.66,195.62,0.03510824]
[1739303968288,0.0350747,195.66,195.64,5.1116]
[1739303969089,0.0350747,195.66,195.65,5.1114]
[1739303970884,0.0350747,195.66,195.62,0.03510824]
[1739303971286,5.1117,195.64,195.62,0.03510824]
[1739303971687,14.08706426,195.65,195.62,0.03510824]
[1739303971985,5.1119,195.63,195.62,0.03510824]
[1739303973287,5.1127,195.61,195.51,1.4651]
[1739303973492,14.08706426,195.62,195.51,1.4651]
[1739303974389,0.03783332,195.58,195.55,0.03694927]
[1739303975188,0.03783332,195.58,195.56,5.1135]
[1739303975790,0.03783332,195.58,195.55,0.03694927]
[1739303975989,0.03783332,195.58,195.57,5.1135]
[1739303977789,0.03783332,195.58,195.55,0.03694927]
[1739303979394,0.03783332,195.58,195.57,5.1135]
[1739303982501,0.03783332,195.58,195.55,0.03694927]
[1739303982502,14.08706426,195.68,195.55,0.03694927]
[1739303982703,14.08706426,195.68,195.56,14.08706426]
[1739303982901,14.08706426,195.68,195.57,1.6034]
[1739303983096,3.1391,195.69,195.57,1.6034]
[1739303983401,3.1391,195.69,195.65,5.1113]
[1739303983800,8.28465046,195.69,195.65,5.14497797]
[1739303984804,14.08706426,195.68,195.65,0.03367797]
[1739303984998,14.08706426,195.68,195.53,14.08706426]
[1739303985208,5.1128,195.6,195.52,1.505]
[1739303985504,14.08706426,195.61,195.52,1.505]
[1739303985707,14.08706426,195.64,195.52,1.505]
[1739303985907,14.08706426,195.64,195.59,5.1129]
[1739303986304,14.08706426,195.64,195.52,1.505]
[1739303986305,0.03746219,195.63,195.6,0.0323738]
[1739303986601,0.03746219,195.63,195.6,5.1507411]
[1739303986907,0.03746219,195.63,195.62,5.1122]
[1739303994510,6.219e-05,195.63,195.62,5.1122]
[1739304004012,6.219e-05,195.63,195.61,5.1123]
[1739304004213,6.219e-05,195.63,195.6,0.0382411]
[1739304004613,6.219e-05,195.63,195.62,5.1122]
[1739304006517,6.219e-05,195.63,195.6,0.0382411]
[1739304007817,5.1124,195.61,195.6,0.0382411]
[1739304008017,6.219e-05,195.63,195.6,0.0382411]
[1739304008219,6.219e-05,195.63,195.6,5.1508411]
[1739304008420,6.219e-05,195.63,195.6,0.0382411]
[1739304008822,14.08706426,195.62,195.6,0.0382411]
[1739304009122,5.1124,195.61,195.6,0.0382411]
[1739304009623,5.1138,195.56,195.53,5.1145]
[1739304009823,5.1138,195.56,195.5,1.4821]
[1739304010019,14.08706426,195.58,195.49,1.5409]
[1739304010223,5.1143,195.54,195.5,5.1151]
[1739304010423,14.08706426,195.55,195.46,7.07870365]
[1739304010622,14.08706426,195.52,195.46,7.07870365]
[1739304010925,14.12047542,195.52,195.49,0.03261154]
[1739304011423,5.1151,195.51,195.49,0.03261154]
[1739304011623,14.12047542,195.52,195.49,0.03261154]
[1739304011821,0.03341116,195.52,195.49,0.03261154]
[1739304012317,1.116e-05,195.52,195.5,14.08706426]
[1739304012523,1.116e-05,195.52,195.51,5.115]
[1739304013422,5.1115,195.65,195.51,3.1389]
[1739304013619,14.08706426,195.67,195.53,14.08706426]
[1739304014014,14.08706426,195.64,195.53,14.08706426]
[1739304014219,14.08706426,195.64,195.51,3.1389]
[1739304014417,14.08706426,195.61,195.57,0.03504643]
[1739304014625,0.03617505,195.6,195.57,0.03504643]
[1739304014927,0.03721696,195.6,195.57,0.03504643]
[1739304015725,5.15001696,195.6,195.57,0.03504643]
[1739304016024,0.03721696,195.6,195.57,0.03504643]
[1739304016923,0.03721696,195.6,195.59,5.113]
[1739304017826,2.9171,195.69,195.63,5.1118]
[1739304018026,2.9171,195.69,195.57,0.03504643]
[1739304018228,5.1109,195.67,195.61,5.1122]
[1739304018427,2.9171,195.69,195.61,5.1122]
[1739304018631,25.49347831,195.69,195.52,22.57637831]
[1739304018831,22.57637831,195.66,195.51,3.1389]
[1739304019024,22.57637831,195.66,195.63,0.03714789]
[1739304019220,5.1122,195.62,195.57,5.1132]
[1739304019423,0.03389306,195.66,195.63,0.03297167]
[1739304019627,22.57637831,195.64,195.51,3.1389]
[1739304020129,5.1129,195.6,195.55,5.114]
[1739304020524,22.57637831,195.64,195.55,5.114]
[1739304020830,0.03305144,195.59,195.56,0.03460632]
[1739304021029,22.57637831,195.58,195.5,1.579]
[1739304021328,5.1143,195.54,195.43,52.46239291]
[1739304021520,5.1143,195.54,195.49,5.1153]
[1739304021728,5.1143,195.54,195.44,1.582]
[1739304021923,22.57637831,195.61,195.54,5.114]
[1739304022125,22.57637831,195.61,195.46,22.57637831]
[1739304022327,5.1135,195.57,195.56,0.03509346]
[1739304022527,5.1135,195.57,195.46,22.57637831]
[1739304022722,5.1135,195.57,195.55,0.03319293]
[1739304022924,0.03870224,195.53,195.47,1.5842]
[1739304023129,5.1132,195.59,195.47,1.5842]
[1739304023433,1.421e-05,195.52,195.48,0.03876634]
[1739304023629,22.57637831,195.7,195.51,22.57637831]
[1739304023829,22.57637831,195.7,195.54,22.57637831]
[1739304024030,22.57637831,195.7,195.55,1.5842]
[1739304024226,1.5043,195.72,195.57,22.57637831]
[1739304024425,21.3256036,195.73,195.57,22.57637831]
[1739304024733,0.0366044,195.67,195.63,0.0391825]
[1739304025131,4.4e-06,195.67,195.66,5.1111]
[1739304025330,4.4e-06,195.67,195.66,27.68747831]
[1739304025926,4.4e-06,195.67,195.66,5.1111]
[1739304027330,4.4e-06,195.67,195.65,5.1113]
[1739304027725,4.0800044,195.67,195.65,5.1113]
[1739304028233,2.01,195.68,195.64,1.5842]
[1739304028734,2.01,195.68,195.67,5.1109]
[1739304029728,2.01,195.68,195.64,1.5842]
[1739304029729,4.11349909,195.69,195.68,5.1106]
[1739304031738,8.84,195.74,195.66,22.57637831]
[1739304032135,8.84,195.74,195.69,22.57637831]
[1739304032441,7.62,195.76,195.69,22.57637831]
[1739304032839,0.03246741,195.74,195.71,0.03901625]
[1739304033038,0.03246741,195.74,195.73,5.1093]
[1739304033734,4.08,195.76,195.72,1.4626]
[1739304033735,2.16,195.75,195.74,5.109]
[1739304035438,2.16,195.75,195.71,0.03901625]
[1739304035742,7.2689,195.75,195.71,0.03901625]
[1739304036137,2.16,195.75,195.71,0.03901625]
[1739304036742,2.16,195.75,195.73,5.1091]
[1739304036943,2.16,195.75,195.71,0.03901625]
[1739304037444,2.16,195.75,195.74,5.109]
[1739304041044,2.16,195.75,195.71,0.03901625]
[1739304043342,3.7626,195.75,195.71,0.03901625]
[1739304043750,3.7626,195.75,195.6,22.57637831]
[1739304043941,1.5313,195.74,195.57,22.57637831]
[1739304044142,22.57637831,195.73,195.57,22.57637831]
[1739304044342,5.1108,195.68,195.57,22.57637831]
[1739304044744,5.1104,195.69,195.64,5.1116]
[1739304045050,0.03662191,195.64,195.61,0.03827234]
[1739304045347,3.7626,195.75,195.63,22.57637831]
[1739304045550,6.86,195.67,195.64,1.6053]
[1739304045944,3.7626,195.75,195.7,5.1098]
[1739304046245,2.16,195.75,195.69,22.57637831]
[1739304046445,0.03435914,195.74,195.73,5.1091]
[1739304048560,0.03435914,195.74,195.71,5.14412724]
[1739304049454,0.03435914,195.74,195.71,0.03432724]
[1739304051152,0.03435914,195.74,195.66,5.1111]
[1739304051352,3.11775914,195.74,195.6,24.03307831]
[1739304051658,5.1103,195.69,195.6,24.03307831]
[1739304051854,3.0834,195.74,195.6,24.03307831]
[1739304052059,5.1101,195.7,195.6,24.03307831]
[1739304052251,5.1101,195.7,195.66,5.1111]
[1739304052550,0.03300766,195.67,195.66,5.1111]
[1739304052954,0.03300766,195.67,195.64,5.1116]
[1739304053155,0.03300766,195.67,195.63,0.03847371]
[1739304054861,0.03300766,195.67,195.63,22.61485202]
[1739304055458,7.66e-06,195.67,195.66,5.1111]
[1739304056961,7.66e-06,195.67,195.66,27.68747831]
[1739304057356,7.43,195.75,195.66,22.57637831]
[1739304057563,7.43,195.75,195.73,5.1092]
[1739304058063,7.43,195.75,195.71,5.1096]
[1739304058257,7.43,195.75,195.66,22.57637831]
[1739304058759,0.03722011,195.72,195.69,0.03478317]
[1739304059456,0.03722011,195.72,195.71,5.1098]
[1739304062156,0.03722011,195.72,195.7,5.11]
[1739304062364,0.03722011,195.72,195.69,0.03478317]
[1739304062860,5.1104,195.69,195.63,5.1118]
[1739304063054,5.1104,195.69,195.6,7.07870365]
[1739304063263,1.499,195.71,195.6,7.07870365]
[1739304063464,5.1106,195.68,195.63,5.1117]
[1739304063761,1.499,195.71,195.6,22.57637831]
[1739304063956,5.1106,195.69,195.64,5.1116]
[1739304064163,0.03542919,195.67,195.64,0.0325434]
[1739304066260,0.03542919,195.67,195.66,5.1111]
[1739304066863,2.919e-05,195.67,195.66,5.1111]
[1739304067366,2.919e-05,195.67,195.66,27.68747831]
[1739304067560,8.1712,195.79,195.66,22.57637831]
[1739304067762,3.0632,195.79,195.69,22.57637831]
[1739304068061,3.0632,195.79,195.74,5.109]
[1739304068262,3.0632,195.79,195.69,22.57637831]
[1739304068568,0.03835443,195.74,195.7,0.0342756]
[1739304068759,0.03835443,195.74,195.73,5.1093]
[1739304069367,0.03835443,195.74,195.7,0.0342756]
[1739304070564,0.03835443,195.74,195.73,5.1093]
[1739304070768,2.19835443,195.74,195.73,5.1093]
[1739304071566,2.19835443,195.74,195.71,5.1096]
[1739304071860,2.19835443,195.74,195.7,0.0342756]
[1739304072166,2.19835443,195.74,195.73,5.1093]
[1739304073457,2.19835443,195.74,195.7,0.0342756]
[1739304074967,7.30745443,195.74,195.7,0.0342756]
[1739304075568,2.19835443,195.74,195.7,0.0342756]
[1739304075766,5.1096,195.72,195.7,0.0342756]
[1739304075958,2.19835443,195.74,195.7,0.0342756]
[1739304076270,5.1093,195.73,195.7,0.0342756]
[1739304078971,5.1093,195.73,195.7,5.1442756]
[1739304079471,2.19835443,195.74,195.73,5.1093]
[1739304082169,7.45835443,195.74,195.73,5.1093]
[1739304082869,5.26,195.74,195.73,5.1093]
[1739304083071,5.443e-05,195.74,195.73,5.1093]
[1739304083271,5.443e-05,195.74,195.7,0.0342756]
[1739304083869,5.443e-05,195.74,195.73,5.1093]
[1739304084172,0.03248216,195.74,195.73,5.1093]
[1739304087570,0.03248216,195.74,195.7,0.0342756]
[1739304088967,5.1096,195.72,195.7,0.0342756]
[1739304089369,0.03248216,195.74,195.7,0.0342756]
[1739304090264,5.14158216,195.74,195.7,5.1440756]
[1739304090467,4.93248216,195.74,195.7,0.0342756]
[1739304091173,4.93248216,195.74,195.71,5.1096]
[1739304091775,10.04158216,195.74,195.7,5.1443756]
[1739304092077,4.93248216,195.74,195.7,0.0342756]
[1739304093776,4.93248216,195.74,195.73,5.1093]
[1739304094175,0.03248216,195.74,195.73,5.1093]
[1739304094674,0.03248216,195.74,195.72,5.1096]
[1739304094875,7.44248216,195.74,195.72,5.1096]
[1739304095372,14.34248216,195.74,195.72,5.1096]
[1739304095877,14.34248216,195.74,195.73,5.1093]
[1739304097079,14.34248216,195.74,195.72,5.1095]
[1739304097678,14.34248216,195.74,195.7,5.1441756]
[1739304098076,14.34248216,195.74,195.7,0.0342756]
[1739304098278,14.31,195.74,195.73,5.1093]
[1739304098481,14.26397551,195.84,195.73,22.57637831]
[1739304099081,5.1067,195.83,195.73,22.57637831]
[1739304099378,3.1789,195.84,195.73,22.57637831]
[1739304099584,0.03641332,195.8,195.78,5.1079]
[1739304099783,0.03641332,195.8,195.76,0.03512893]
[1739304100282,5.1079,195.79,195.76,0.03512893]
[1739304100484,0.03641332,195.8,195.76,0.03512893]
[1739304100883,5.1083,195.77,195.76,0.03512893]
[1739304101784,5.1091,195.74,195.67,24.05867831]
[1739304101978,8.14,195.78,195.69,5.1103]
[1739304102184,8.14,195.78,195.64,22.57637831]
[1739304102185,1.601,195.77,195.64,22.57637831]
[1739304102580,1.601,195.77,195.69,5.1102]
[1739304102779,1.601,195.77,195.64,22.57637831]
[1739304102780,5.1094,195.73,195.64,22.57637831]
[1739304102981,5.1094,195.73,195.71,0.03491621]
[1739304103181,5.1094,195.73,195.69,5.1101]
[1739304103485,5.1094,195.73,195.7,0.03373961]
[1739304103687,0.03505798,195.74,195.7,0.03373961]
[1739304103884,0.03505798,195.74,195.62,1.4768]
[1739304104186,5.1108,195.68,195.61,45.51015897]
[1739304104589,5.1108,195.68,195.63,5.1117]
[1739304104784,22.57637831,195.75,195.63,5.1117]
[1739304105187,0.03220448,195.71,195.67,0.03590083]
[1739304105990,5.1106,195.68,195.67,0.03590083]
[1739304106991,5.1113,195.66,195.62,5.1121]
[1739304107192,22.57637831,195.72,195.58,22.57637831]
[1739304107581,5.1109,195.67,195.63,5.1117]
[1739304108189,5.14604314,195.67,195.64,5.1116]
[1739304108389,5.14604314,195.67,195.63,0.0356894]
[1739304108586,0.03514314,195.67,195.63,0.0356894]
[1739304109189,5.14604314,195.67,195.63,5.1473894]
[1739304109391,0.03514314,195.67,195.63,0.0356894]
[1739304110294,0.03514314,195.67,195.65,5.1112]
[1739304110587,0.03514314,195.67,195.63,0.0356894]
[1739304110891,0.03514314,195.67,195.63,5.1474894]
[1739304111489,5.1113,195.66,195.63,0.0356894]
[1739304112192,5.1112,195.66,195.63,0.0356894]
[1739304112891,5.1116,195.64,195.63,0.0356894]
[1739304113092,0.03514314,195.67,195.63,0.0356894]
[1739304114192,5.1116,195.65,195.63,0.0356894]
[1739304114796,5.1112,195.66,195.63,0.0356894]
[1739304114991,5.1112,195.66,195.63,5.1474894]
[1739304115193,0.03514314,195.67,195.63,0.0356894]
[1739304115488,5.14624314,195.67,195.63,5.1474894]
[1739304115701,0.03514314,195.67,195.63,5.1474894]
[1739304115884,0.03514314,195.67,195.63,0.0356894]
[1739304116089,5.1114,195.65,195.63,0.0356894]
[1739304116288,0.03514314,195.67,195.63,0.0356894]
[1739304116793,5.1113,195.66,195.63,0.0356894]
[1739304116994,0.03514314,195.67,195.63,0.0356894]
[1739304117192,5.1116,195.64,195.63,0.0356894]
[1739304117695,5.1114,195.65,195.63,0.0356894]
[1739304120507,7.29514314,195.67,195.63,0.0356894]
[1739304120508,5.1113,195.66,195.63,0.0356894]
[1739304120807,7.29514314,195.67,195.63,0.0356894]
[1739304121806,7.29514314,195.67,195.65,5.1113]
[1739304122109,7.29514314,195.67,195.65,14.11002952]
[1739304122305,1.601,195.77,195.72,5.1094]
[1739304122501,8.14,195.78,195.69,14.11002952]
[1739304122910,13.2482,195.78,195.69,14.11002952]
[1739304123307,5.1083,195.77,195.69,14.11002952]
[1739304123501,0.03587108,195.75,195.72,5.14505001]
[1739304123802,5.1091,195.74,195.72,0.03565001]
[1739304124011,0.03587108,195.75,195.72,0.03565001]
[1739304125718,0.03587108,195.75,195.74,5.109]
[1739304126508,0.03587108,195.75,195.72,0.03565001]
[1739304127017,0.03587108,195.75,195.74,5.109]
[1739304128307,0.03587108,195.75,195.72,5.14495001]
[1739304128616,0.03587108,195.75,195.72,0.03565001]
[1739304129114,0.03587108,195.75,195.72,5.14515001]
[1739304129315,8.33587108,195.75,195.72,0.03565001]
[1739304129518,8.33587108,195.75,195.74,5.109]
[1739304129815,8.33587108,195.75,195.72,0.03565001]
[1739304130017,8.33587108,195.75,195.72,5.14515001]
[1739304130221,8.33587108,195.75,195.72,0.03565001]
[1739304130514,5.1093,195.73,195.72,0.03565001]
[1739304130914,8.33587108,195.75,195.72,0.03565001]
[1739304131113,5.1092,195.74,195.72,0.03565001]
[1739304131312,8.33587108,195.75,195.72,0.03565001]
[1739304132013,5.109,195.74,195.72,0.03565001]
[1739304132218,8.33587108,195.75,195.72,0.03565001]
[1739304133621,5.1093,195.73,195.72,0.03565001]
[1739304134223,13.44467108,195.75,195.72,5.14515001]
[1739304134419,13.44467108,195.75,195.72,0.03565001]
[1739304134819,8.33587108,195.75,195.72,0.03565001]
[1739304135521,5.109,195.74,195.72,0.03565001]
[1739304135820,8.33587108,195.75,195.72,0.03565001]
[1739304136021,5.109,195.74,195.72,0.03565001]
[1739304136320,8.33587108,195.75,195.72,0.03565001]
[1739304136726,13.44467108,195.75,195.72,0.03565001]
[1739304137222,8.33587108,195.75,195.72,0.03565001]
[1739304139616,8.33587108,195.75,195.72,5.14515001]
[1739304139818,8.33587108,195.75,195.72,0.03565001]
[1739304141118,8.33587108,195.75,195.74,5.109]
[1739304142226,8.33587108,195.75,195.72,0.03565001]
[1739304142733,8.33587108,195.75,195.72,5.14515001]
[1739304143324,8.33587108,195.75,195.72,0.03565001]
[1739304144318,0.03587108,195.75,195.72,0.03565001]
[1739304144518,0.03587108,195.75,195.73,5.1091]
[1739304144830,0.03587108,195.75,195.72,0.03565001]
[1739304145527,0.03587108,195.75,195.74,5.109]
[1739304147426,5.1068,195.83,195.78,5.1079]
[1739304147623,14.09198658,195.86,195.74,14.09198658]
[1739304148024,14.09198658,195.86,195.79,5.1075]
[1739304148025,5.1066,195.84,195.79,5.1075]
[1739304148225,5.1066,195.84,195.74,14.09198658]
[1739304148431,1.5378,195.87,195.77,14.09198658]
[1739304148619,6.6436,195.87,195.77,14.1296415]
[1739304148824,0.03823329,195.81,195.77,14.1296415]
[1739304149131,0.03823329,195.81,195.8,5.1075]
[1739304149627,0.03823329,195.81,195.8,19.19948658]
[1739304156435,3.329e-05,195.81,195.8,19.19948658]
[1739304157128,6.02,195.87,195.86,5.1059]
[1739304157525,1.5696,195.91,195.83,14.09198658]
[1739304157729,1.5696,195.91,195.84,5.1064]
[1739304158033,1.5696,195.91,195.73,13.1955]
[1739304158034,1.5696,195.91,195.8,14.09198658]
[1739304158233,0.03524592,195.89,195.86,0.03496652]
[1739304158835,14.1272325,195.89,195.8,5.1075]
[1739304159231,14.1272325,195.89,195.77,14.09198658]
[1739304159534,14.09198658,195.89,195.77,14.09198658]
[1739304160133,0.03683443,195.85,195.81,5.14209748]
[1739304160435,0.03683443,195.85,195.81,0.03489748]
[1739304160632,5.107,195.82,195.81,0.03489748]
[1739304161528,5.14303443,195.85,195.81,0.03489748]
[1739304161727,0.03683443,195.85,195.81,0.03489748]
[1739304162127,5.1065,195.84,195.81,0.03489748]
[1739304162938,5.14323443,195.85,195.81,5.14189748]
[1739304163934,0.03683443,195.85,195.81,0.03489748]
[1739304165040,0.03683443,195.85,195.84,5.1064]
[1739304168844,0.03683443,195.85,195.83,14.09198658]
[1739304168845,0.03683443,195.85,195.81,1.53319748]
[1739304169047,0.03683443,195.85,195.82,5.1069]
[1739304169644,0.03683443,195.85,195.81,0.03489748]
[1739304170048,0.03683443,195.85,195.83,5.1065]
[1739304170748,0.03683443,195.85,195.81,0.03489748]
[1739304171747,0.03683443,195.85,195.84,5.1064]
[1739304172850,0.03683443,195.85,195.81,0.03489748]
[1739304173547,0.03683443,195.85,195.83,5.1065]
[1739304173751,0.03683443,195.85,195.81,0.03489748]
[1739304174147,0.03683443,195.85,195.84,5.1064]
[1739304179656,0.03683443,195.85,195.84,14.11473748]
[1739304181651,0.03683443,195.85,195.84,9.00833748]
[1739304181954,0.03683443,195.85,195.82,9.00833748]
[1739304182857,5.14303443,195.85,195.82,14.11523748]
[1739304183150,5.14303443,195.85,195.82,9.00833748]
[1739304183357,5.1065,195.84,195.82,9.00833748]
[1739304183560,0.03683443,195.85,195.82,9.00833748]
[1739304184054,0.03683443,195.85,195.82,14.11523748]
[1739304184557,5.14303443,195.85,195.82,14.11523748]
[1739304184757,11.05303443,195.85,195.82,14.11523748]
[1739304185154,5.94683443,195.85,195.82,14.11523748]
[1739304185349,5.94683443,195.85,195.82,9.00833748]
[1739304185755,5.94683443,195.85,195.84,9.00833748]
[1739304186452,5.94683443,195.85,195.82,9.00833748]
[1739304187058,5.94683443,195.85,195.83,5.1067]
[1739304189259,5.94683443,195.85,195.81,0.03489748]
[1739304189260,5.1067,195.83,195.81,0.03489748]
[1739304189458,9.00833748,195.84,195.81,0.03489748]
[1739304190370,5.1069,195.82,195.81,0.03489748]
[1739304190662,9.00833748,195.84,195.81,0.03489748]
[1739304190867,7.41993443,195.85,195.81,0.03489748]
[1739304192771,5.1067,195.83,195.81,0.03489748]
[1739304193469,5.107,195.82,195.81,0.03489748]
[1739304195866,6.08,195.83,195.81,0.03489748]
[1739304196469,5.107,195.82,195.81,0.03489748]
[1739304206280,6.08,195.83,195.81,0.03489748]
[1739304207078,6.08,195.83,195.82,5.107]
[1739304210577,6.08,195.83,195.81,0.03489748]
[1739304211276,6.08,195.83,195.82,5.107]
[1739304211684,11.1869,195.83,195.81,0.03489748]
[1739304211877,6.08,195.83,195.81,0.03489748]
[1739304212582,6.08,195.83,195.82,5.107]
[1739304214178,12.77,195.83,195.82,5.107]
[1739304215676,12.77,195.83,195.82,14.11552374]
[1739304215881,5.0751,195.83,195.82,14.11552374]
[1739304216076,0.03683443,195.85,195.84,5.1064]
[1739304216278,10.62512374,195.95,195.84,9.00852374]
[1739304216577,2.9452,195.98,195.93,9.00852374]
[1739304216781,1.4689,195.98,195.95,9.00852374]
[1739304217280,139.94200085,196.01,195.97,9.00852374]
[1739304217586,0.03580151,195.98,195.95,0.03344703]
[1739304217978,139.94200085,196.01,195.82,212.8307]
[1739304218182,139.94200085,196.01,195.99,9.00852374]
[1739304218984,0.03610521,196.02,195.99,9.00852374]
[1739304219178,5.13800521,196.02,195.99,9.00852374]
[1739304219377,0.03610521,196.02,195.99,9.00852374]
[1739304219576,0.03610521,196.02,195.98,0.03252979]
[1739304219981,5.13800521,196.02,195.98,0.03252979]
[1739304220186,0.03610521,196.02,195.98,0.03252979]
[1739304220483,5.102,196.01,195.98,0.03252979]
[1739304220678,0.03610521,196.02,195.98,0.03252979]
[1739304221686,5.102,196.01,195.98,0.03252979]
[1739304221883,0.03610521,196.02,195.98,0.03252979]
[1739304222586,0.03610521,196.02,195.98,5.13522979]
[1739304223286,0.03610521,196.02,195.98,0.03252979]
[1739304225487,5.13810521,196.02,195.98,5.13512979]
[1739304225783,5.13810521,196.02,195.98,0.03252979]
[1739304226088,5.13810521,196.02,195.99,5.1025]
[1739304226286,0.03610521,196.02,195.99,5.1025]
[1739304226887,5.13790521,196.02,195.99,5.1025]
[1739304227189,0.03610521,196.02,195.98,0.03252979]
[1739304227387,5.1021,196.01,195.98,5.13522979]
[1739304227581,0.03610521,196.02,195.98,0.03252979]
[1739304227784,5.13800521,196.02,195.99,5.1025]
[1739304227986,0.03610521,196.02,195.98,0.03252979]
[1739304229088,5.13800521,196.02,195.99,5.1024]
[1739304229290,0.03610521,196.02,195.98,0.03252979]
[1739304229685,0.03610521,196.02,195.99,5.1025]
[1739304230787,5.13800521,196.02,195.99,5.1025]
[1739304232091,0.03610521,196.02,195.98,0.03252979]
[1739304232291,0.03610521,196.02,196.01,5.102]
[1739304232489,0.03610521,196.02,195.98,0.03252979]
[1739304232892,5.1021,196.01,195.98,5.13522979]
[1739304233090,0.03610521,196.02,195.98,0.03252979]
[1739304233292,5.13790521,196.02,195.99,5.1023]
[1739304233687,0.03610521,196.02,195.98,0.03252979]
[1739304233895,0.03610521,196.02,196.01,5.102]
[1739304234088,0.03610521,196.02,195.98,0.03252979]
[1739304234389,0.03610521,196.02,196.0,5.1021]
[1739304234583,0.03610521,196.02,195.98,0.03252979]
[1739304234892,0.03610521,196.02,196.0,5.1022]
[1739304235094,0.03610521,196.02,195.98,0.03252979]
[1739304235587,5.1024,196.0,195.98,0.03252979]
[1739304236082,5.1021,196.01,195.98,5.13512979]
[1739304236285,0.03610521,196.02,195.98,0.03252979]
[1739304236683,0.03610521,196.02,195.99,5.1025]
[1739304236890,0.03610521,196.02,195.98,0.03252979]
[1739304237992,0.03610521,196.02,195.98,14.08908818]
[1739304238295,0.03610521,196.02,196.01,5.102]
[1739304240796,0.03610521,196.02,196.0,14.09697405]
[1739304240996,0.03610521,196.02,196.0,8.99477405]
[1739304241493,0.03610521,196.02,196.01,5.102]
[1739304246297,0.03610521,196.02,196.0,8.99477405]
[1739304247295,0.03610521,196.02,196.01,5.102]
[1739304248592,5.21e-06,196.02,196.01,5.102]
[1739304251301,5.21e-06,196.05,196.04,5.1012]
[1739304251599,14.09447405,196.1,196.04,8.99477405]
[1739304251795,14.09447405,196.1,196.07,5.1004]
[1739304251999,8.99477405,196.1,196.07,5.1004]
[1739304252402,9.03101265,196.1,196.07,0.03474287]
[1739304252599,8.99477405,196.08,196.07,0.03474287]
[1739304252803,14.09497405,196.08,196.07,0.03474287]
[1739304253102,8.99477405,196.08,196.07,0.03474287]
[1739304253302,21.08071265,196.1,196.07,0.03474287]
[1739304253703,21.08071265,196.1,196.07,5.13514287]
[1739304254206,6.9862386,196.1,196.08,5.1001]
[1739304254806,12.0859386,196.1,196.08,5.1001]
[1739304255700,6.9862386,196.1,196.08,5.1001]
[1739304256003,6.9862386,196.1,196.08,5.1002]
[1739304256208,6.9862386,196.1,196.07,0.03474287]
[1739304256611,6.9862386,196.1,196.08,5.1002]
[1739304256802,6.9862386,196.1,196.07,0.03474287]
[1739304257309,12.0861386,196.1,196.07,5.13494287]
[1739304257904,5.0999,196.09,196.07,5.13494287]
[1739304258109,5.0999,196.09,196.07,0.03474287]
[1739304258708,21.08071265,196.1,196.07,5.13514287]
[1739304258909,15.98101265,196.1,196.07,5.13514287]